Workbook

Sheet 설명서
C3: 점수 배점 검토
C6: 예시 탭을 참고하시고, 입력 탭에 입력하시면 됩니다.
C8: 난이도와 점수 두가지를 입력합니다.
C10: 난이도 입력(숫자1,2,3) / 결과(하,중,상) - 상단의 % 참고
C12: 점수는 여러칸을 선택후 숫자를 적은 후 (Ctrl + 엔터)를 누르면
C13: 여러칸에 동일한 내용을 입력할 수 있습니다.
C15: 100점 과부족과 역배점은 빨간색으로 표시됩니다.
M16: https://withseok.tistory.com/263?category=830379

Sheet 1점단위배점
P1: zcrong
C2: 만점 | D2: 100 | J2: 만점 | K2: 100 | Q2: 만점 | R2: 100 | X2: 만점
C3: 배점 | D3: =SUM(F6:F45) -> 100 | E3: =IF(D3<D2,"부족",IF(D3>D2,"과함",IF(D3=D2,"OK","오류"))) -> OK | G3: 하 | H3: =COUNTIF(E$6:E$45,G3)&"개 ("&ROUND(COUNTIF(E$6:E$45,G3)/(40-COUNTBLANK(E$6:E$45))*100,0)&"%)" -> 5개 (29%) | J3: =C3 -> 배점 | K3: =SUM(M6:M45) -> 100 | L3: =IF(K3<K2,"부족",IF(K3>K2,"과함",IF(K3=K2,"OK","오류"))) -> OK | N3: 하 | O3: =COUNTIF(L$6:L$45,N3)&"개 ("&ROUND(COUNTIF(L$6:L$45,N3)/(40-COUNTBLANK(L$6:L$45))*100,0)&"%)" -> 9개 (50%) | Q3: =C3 -> 배점 | R3: =SUM(T6:T45) -> 100 | S3: =IF(R3<R2,"부족",IF(R3>R2,"과함",IF(R3=R2,"OK","오류"))) -> OK | U3: 하 | V3: =COUNTIF(S$6:S$45,U3)&"개 ("&ROUND(COUNTIF(S$6:S$45,U3)/(40-COUNTBLANK(S$6:S$45))*100,0)&"%)" -> 8개 (31%) | X3: =C3 -> 배점 | Y3: =SUM(AA6:AA45) -> 0 | Z3: =IF(Y3<Y2,"부족",IF(Y3>Y2,"과함",IF(Y3=Y2,"OK","오류"))) -> OK | AB3: 하 | AC3: =COUNTIF(Z$6:Z$45,AB3)&"개 ("&ROUND(COUNTIF(Z$6:Z$45,AB3)/(40-COUNTBLANK(Z$6:Z$45))*100,0)&"%)" ->  | AE3: 엑셀멘토 WH | AF3: 만든이 JS
C4: 분산 | D4: =VARP(F6:F45) -> 3.884297521 | G4: 중 | H4: =COUNTIF(E$6:E$45,G4)&"개 ("&ROUND(COUNTIF(E$6:E$45,G4)/(40-COUNTBLANK(E$6:E$45))*100,0)&"%)" -> 9개 (53%) | J4: 분산 | K4: =VARP(M6:M45) -> 4.052930057 | N4: 중 | O4: =COUNTIF(L$6:L$45,N4)&"개 ("&ROUND(COUNTIF(L$6:L$45,N4)/(40-COUNTBLANK(L$6:L$45))*100,0)&"%)" -> 5개 (28%) | Q4: 분산 | R4: =VARP(T6:T45) -> 0.4378698225 | U4: 중 | V4: =COUNTIF(S$6:S$45,U4)&"개 ("&ROUND(COUNTIF(S$6:S$45,U4)/(40-COUNTBLANK(S$6:S$45))*100,0)&"%)" -> 13개 (50%) | X4: 분산 | Y4: =VARP(AA6:AA45) ->  | AB4: 중 | AC4: =COUNTIF(Z$6:Z$45,AB4)&"개 ("&ROUND(COUNTIF(Z$6:Z$45,AB4)/(40-COUNTBLANK(Z$6:Z$45))*100,0)&"%)" ->  | AE4: 난이도
C5: 번호 | D5: 난이도 | F5: 점수 | G5: 상 | H5: 3개 (18%) | J5: 번호 | K5: 난이도 | M5: 점수 | N5: 상 | O5: 4개 (22%) | Q5: 번호 | R5: 난이도 | T5: 점수 | U5: 상 | V5: 5개 (19%) | X5: 번호 | Y5: 난이도 | AA5: 점수 | AB5: 상 | AE5: 입력 | AF5: 결과
C6: 1 | D6: 1 | E6: =IF(D6=1,"하",IF(D6=2,"중",IF(D6=3,"상",""))) -> 하 | F6: 3 | G6: 총 | H6: =COUNTA(D6:D45)&"문항" -> 17문항 | I6: =IF(D6="","",IF(D6=1,IF(F6>MIN(H$16,H$20),2,1),IF(D6=2,IF(F6>H$20,2,1),1))) -> 1 | J6: 1 | K6: 1 | L6: =IF(K6=1,"하",IF(K6=2,"중",IF(K6=3,"상",""))) -> 하 | M6: 3 | N6: 총 | O6: =COUNTA(K6:K45)&"문항" -> 18문항 | P6: =IF(K6="","",IF(K6=1,IF(M6>MIN(O$16,O$20),2,1),IF(K6=2,IF(M6>O$20,2,1),1))) -> 1 | Q6: 1 | R6: 1 | S6: =IF(R6=1,"하",IF(R6=2,"중",IF(R6=3,"상",""))) -> 하 | T6: 3 | U6: 총 | V6: =COUNTA(R6:R45)&"문항" -> 26문항 | W6: =IF(R6="","",IF(R6=1,IF(T6>MIN(V$16,V$20),2,1),IF(R6=2,IF(T6>V$20,2,1),1))) -> 1 | X6: 1 | Z6: =IF(Y6=1,"하",IF(Y6=2,"중",IF(Y6=3,"상",""))) ->  | AB6: 총 | AC6: =COUNTA(Y6:Y45)&"문항" -> 0문항 | AD6: =IF(Y6="","",IF(Y6=1,IF(AA6>MIN(AC$16,AC$20),2,1),IF(Y6=2,IF(AA6>AC$20,2,1),1))) ->  | AE6: 1 | AF6: 하
C7: 2 | D7: 1 | E7: =IF(D7=1,"하",IF(D7=2,"중",IF(D7=3,"상",""))) -> 하 | F7: 3 | I7: =IF(D7="","",IF(D7=1,IF(F7>MIN(H$16,H$20),2,1),IF(D7=2,IF(F7>H$20,2,1),1))) -> 1 | J7: 2 | K7: 1 | L7: =IF(K7=1,"하",IF(K7=2,"중",IF(K7=3,"상",""))) -> 하 | M7: 3 | P7: =IF(K7="","",IF(K7=1,IF(M7>MIN(O$16,O$20),2,1),IF(K7=2,IF(M7>O$20,2,1),1))) -> 1 | Q7: 2 | R7: 1 | S7: =IF(R7=1,"하",IF(R7=2,"중",IF(R7=3,"상",""))) -> 하 | T7: 3 | W7: =IF(R7="","",IF(R7=1,IF(T7>MIN(V$16,V$20),2,1),IF(R7=2,IF(T7>V$20,2,1),1))) -> 1 | X7: 2 | Z7: =IF(Y7=1,"하",IF(Y7=2,"중",IF(Y7=3,"상",""))) ->  | AD7: =IF(Y7="","",IF(Y7=1,IF(AA7>MIN(AC$16,AC$20),2,1),IF(Y7=2,IF(AA7>AC$20,2,1),1))) ->  | AE7: 2 | AF7: 중
C8: 3 | D8: 1 | E8: 하 | F8: 3 | H8: 역배점 | I8: 1 | J8: 3 | K8: 1 | L8: 하 | M8: 3 | O8: 역배점 | P8: 1 | Q8: 3 | R8: 1 | S8: 하 | T8: 3 | V8: 역배점 | W8: 1 | X8: 3 | AC8: 역배점 | AE8: 3 | AF8: 상
C9: 4 | D9: 1 | E9: 하 | F9: 3 | H9: 검토 | I9: 1 | J9: 4 | K9: 1 | L9: 하 | M9: 3 | O9: 검토 | P9: 1 | Q9: 4 | R9: 1 | S9: 하 | T9: 3 | V9: 검토 | W9: 1 | X9: 4 | AC9: 검토
C10: 5 | D10: 1 | E10: 하 | F10: 3 | I10: 1 | J10: 5 | K10: 2 | L10: 중 | M10: 3 | P10: 1 | Q10: 5 | R10: 1 | S10: 하 | T10: 3 | W10: 1 | X10: 5 | AE10: =#REF! -> 
C11: 6 | D11: 2 | E11: 중 | F11: 3 | H11: 하 | I11: 1 | J11: 6 | K11: 2 | L11: 중 | M11: 3 | O11: 하 | P11: 1 | Q11: 6 | R11: 1 | S11: 하 | T11: 3 | V11: 하 | W11: 1 | X11: 6 | AC11: 하 | AE11: =#REF! -> 
C12: 7 | D12: 2 | E12: 중 | F12: 3 | G12: 최저 | H12: =INDEX(F$6:F$45,MATCH(MIN(IF(D$6:D$45=1,D$6:D$45,7)*IF(F$6:F$45="",7,F$6:F$45)*1),F$6:F$45,0),) -> 3 | I12: 1 | J12: 7 | K12: 1 | L12: 하 | M12: 3 | N12: 최저 | O12: =INDEX(M$6:M$45,MATCH(MIN(IF(K$6:K$45=1,K$6:K$45,7)*IF(M$6:M$45="",7,M$6:M$45)*1),M$6:M$45,0),) -> 3 | P12: 1 | Q12: 7 | R12: 1 | S12: 하 | T12: 3 | U12: 최저 | V12: =INDEX(T$6:T$45,MATCH(MIN(IF(R$6:R$45=1,R$6:R$45,7)*IF(T$6:T$45="",7,T$6:T$45)*1),T$6:T$45,0),) -> 3 | W12: 1 | X12: 7 | AB12: 최저 | AC12: =INDEX(AA$6:AA$45,MATCH(MIN(IF(Y$6:Y$45=1,Y$6:Y$45,7)*IF(AA$6:AA$45="",7,AA$6:AA$45)*1),AA$6:AA$45,0),) -> 
C13: 8 | D13: 2 | E13: 중 | F13: 3 | G13: 최고 | H13: =INDEX(F$6:F$45,MATCH(MAX((D$6:D$45=1)*F$6:F$45*1),F$6:F$45,0)) -> 3 | I13: 1 | J13: 8 | K13: 1 | L13: 하 | M13: 3 | N13: 최고 | O13: =INDEX(M$6:M$45,MATCH(MAX((K$6:K$45=1)*M$6:M$45*1),M$6:M$45,0)) -> 3 | P13: 1 | Q13: 8 | R13: 1 | S13: 하 | T13: 3 | U13: 최고 | V13: =INDEX(T$6:T$45,MATCH(MAX((R$6:R$45=1)*T$6:T$45*1),T$6:T$45,0)) -> 3 | W13: 1 | X13: 8 | AB13: 최고 | AC13: =INDEX(AA$6:AA$45,MATCH(MAX((Y$6:Y$45=1)*AA$6:AA$45*1),AA$6:AA$45,0)) ->  | AE13: =#REF! -> 
C14: 9 | D14: 2 | E14: 중 | F14: 3 | I14: 1 | J14: 9 | K14: 1 | L14: 하 | M14: 3 | P14: 1 | Q14: 9 | R14: 2 | S14: 중 | T14: 4 | W14: 1 | X14: 9 | AE14: =#REF! -> 
C15: 10 | D15: 2 | E15: 중 | F15: 3 | H15: 중 | I15: 1 | J15: 10 | K15: 1 | L15: 하 | M15: 3 | O15: 중 | P15: 1 | Q15: 10 | R15: 2 | S15: 중 | T15: 4 | V15: 중 | W15: 1 | X15: 10 | AC15: 중
C16: 11 | D16: 2 | E16: 중 | F16: 4 | G16: 최저 | H16: =INDEX(F$6:F$45,MATCH(MIN(IF(D$6:D$45=2,1,7)*IF(F$6:F$45="",7,F$6:F$45)*1),F$6:F$45,0),) -> 3 | I16: 1 | J16: 11 | K16: 1 | L16: 하 | M16: 3 | N16: 최저 | O16: =INDEX(M$6:M$45,MATCH(MIN(IF(K$6:K$45=2,1,7)*IF(M$6:M$45="",7,M$6:M$45)*1),M$6:M$45,0),) -> 3 | P16: 1 | Q16: 11 | R16: 2 | S16: 중 | T16: 4 | U16: 최저 | V16: =INDEX(T$6:T$45,MATCH(MIN(IF(R$6:R$45=2,1,7)*IF(T$6:T$45="",7,T$6:T$45)*1),T$6:T$45,0),) -> 4 | W16: 1 | X16: 11 | AB16: 최저 | AC16: =INDEX(AA$6:AA$45,MATCH(MIN(IF(Y$6:Y$45=2,1,7)*IF(AA$6:AA$45="",7,AA$6:AA$45)*1),AA$6:AA$45,0),) ->  | AE16: =#REF! -> 
C17: 12 | D17: 2 | E17: 중 | F17: 4 | G17: 최고 | H17: =INDEX(F$6:F$45,MATCH(MAX((D$6:D$45=2)*F$6:F$45),F$6:F$45,0)) -> 4 | I17: 1 | J17: 12 | K17: 2 | L17: 중 | M17: 3 | N17: 최고 | O17: =INDEX(M$6:M$45,MATCH(MAX((K$6:K$45=2)*M$6:M$45),M$6:M$45,0)) -> 3 | P17: 1 | Q17: 12 | R17: 2 | S17: 중 | T17: 4 | U17: 최고 | V17: =INDEX(T$6:T$45,MATCH(MAX((R$6:R$45=2)*T$6:T$45),T$6:T$45,0)) -> 4 | W17: 1 | X17: 12 | AB17: 최고 | AC17: =INDEX(AA$6:AA$45,MATCH(MAX((Y$6:Y$45=2)*AA$6:AA$45),AA$6:AA$45,0)) ->  | AE17: =#REF! -> 
C18: 13 | D18: 2 | E18: 중 | F18: 4 | I18: 1 | J18: 13 | K18: 2 | L18: 중 | M18: 3 | P18: 1 | Q18: 13 | R18: 2 | S18: 중 | T18: 4 | W18: 1 | X18: 13 | AE18: =#REF! -> 
C19: 14 | D19: 2 | E19: 중 | F19: 4 | H19: 상 | I19: 1 | J19: 14 | K19: 2 | L19: 중 | M19: 3 | O19: 상 | P19: 1 | Q19: 14 | R19: 2 | S19: 중 | T19: 4 | V19: 상 | W19: 1 | X19: 14 | AC19: 상 | AE19: =#REF! -> 
C20: 15 | D20: 3 | E20: 상 | F20: 4 | G20: 최저 | H20: =INDEX(F$6:F$45,MATCH(MIN(IF(D$6:D$45=3,1,7)*IF(F$6:F$45="",7,F$6:F$45)*1),F$6:F$45,0),) -> 4 | I20: 1 | J20: 15 | K20: 3 | L20: 상 | M20: 4 | N20: 최저 | O20: =INDEX(M$6:M$45,MATCH(MIN(IF(K$6:K$45=3,1,7)*IF(M$6:M$45="",7,M$6:M$45)*1),M$6:M$45,0),) -> 4 | P20: 1 | Q20: 15 | R20: 2 | S20: 중 | T20: 4 | U20: 최저 | V20: =INDEX(T$6:T$45,MATCH(MIN(IF(R$6:R$45=3,1,7)*IF(T$6:T$45="",7,T$6:T$45)*1),T$6:T$45,0),) -> 4 | W20: 1 | X20: 15 | AB20: 최저 | AC20: =INDEX(AA$6:AA$45,MATCH(MIN(IF(Y$6:Y$45=3,1,7)*IF(AA$6:AA$45="",7,AA$6:AA$45)*1),AA$6:AA$45,0),) ->  | AE20: =#REF! -> 
C21: 16 | D21: 3 | E21: 상 | F21: 5 | G21: 최고 | H21: =INDEX(F$6:F$45,MATCH(MAX((D$6:D$45=3)*F$6:F$45),F$6:F$45,0)) -> 5 | I21: 1 | J21: 16 | K21: 3 | L21: 상 | M21: 4 | N21: 최고 | O21: =INDEX(M$6:M$45,MATCH(MAX((K$6:K$45=3)*M$6:M$45),M$6:M$45,0)) -> 5 | P21: 1 | Q21: 16 | R21: 2 | S21: 중 | T21: 4 | U21: 최고 | V21: =INDEX(T$6:T$45,MATCH(MAX((R$6:R$45=3)*T$6:T$45),T$6:T$45,0)) -> 5 | W21: 1 | X21: 16 | AB21: 최고 | AC21: =INDEX(AA$6:AA$45,MATCH(MAX((Y$6:Y$45=3)*AA$6:AA$45),AA$6:AA$45,0)) ->  | AE21: =#REF! -> 
C22: 17 | D22: 3 | E22: 상 | F22: 5 | I22: 1 | J22: 17 | K22: 3 | L22: 상 | M22: 5 | P22: 1 | Q22: 17 | R22: 2 | S22: 중 | T22: 4 | W22: 1 | X22: 17 | AE22: =#REF! -> 
C23: 18 | F23: 8 | J23: 18 | K23: 3 | L23: 상 | M23: 5 | P23: 1 | Q23: 18 | R23: 2 | S23: 중 | T23: 4 | W23: 1 | X23: 18 | AE23: =#REF! -> 
C24: 19 | F24: 8 | J24: 19 | M24: 8 | Q24: 19 | R24: 2 | S24: 중 | T24: 4 | W24: 1 | X24: 19 | AE24: =#REF! -> 
C25: 20 | F25: 8 | J25: 20 | M25: 8 | Q25: 20 | R25: 2 | S25: 중 | T25: 4 | W25: 1 | X25: 20 | AE25: =#REF! -> 
C26: 21 | F26: 8 | J26: 21 | M26: 8 | Q26: 21 | R26: 2 | S26: 중 | T26: 4 | W26: 1 | X26: 21 | AE26: =#REF! -> 
C27: 22 | F27: 8 | J27: 22 | M27: 8 | Q27: 22 | R27: 3 | S27: 상 | T27: 4 | W27: 1 | X27: 22
C28: 23 | J28: 23 | M28: 8 | Q28: 23 | R28: 3 | S28: 상 | T28: 5 | W28: 1 | X28: 23 | AE28: =#REF! -> 
C29: 24 | J29: 24 | Q29: 24 | R29: 3 | S29: 상 | T29: 5 | W29: 1 | X29: 24 | AE29: =#REF! -> 
C30: 25 | J30: 25 | Q30: 25 | R30: 3 | S30: 상 | T30: 5 | W30: 1 | X30: 25 | AE30: =#REF! -> 
C31: 26 | J31: 26 | Q31: 26 | R31: 3 | S31: 상 | T31: 5 | W31: 1 | X31: 26 | AE31: =#REF! -> 
C32: 27 | J32: 27 | Q32: 27 | X32: 27
C33: 28 | J33: 28 | Q33: 28 | X33: 28
C34: 29 | J34: 29 | Q34: 29 | X34: 29
C35: 30 | J35: 30 | Q35: 30 | X35: 30
C36: 31 | J36: 31 | Q36: 31 | X36: 31
C37: 32 | J37: 32 | Q37: 32 | X37: 32
C38: 33 | J38: 33 | Q38: 33 | X38: 33
C39: 34 | J39: 34 | Q39: 34 | X39: 34
C40: 35 | J40: 35 | L40: =IF(K40=1,"하",IF(K40=2,"중",IF(K40=3,"상",""))) ->  | Q40: 35 | S40: =IF(R40=1,"하",IF(R40=2,"중",IF(R40=3,"상",""))) ->  | X40: 35 | Z40: =IF(Y40=1,"하",IF(Y40=2,"중",IF(Y40=3,"상",""))) -> 
C41: 36 | J41: 36 | Q41: 36 | X41: 36
C42: 37 | J42: 37 | Q42: 37 | X42: 37
C43: 38 | J43: 38 | Q43: 38 | X43: 38
C44: 39 | J44: 39 | Q44: 39 | X44: 39
C45: 40 | J45: 40 | Q45: 40 | X45: 40

Sheet 배점1~4안
P1: zcrong
C2: 만점 | D2: 100 | J2: 만점 | K2: 100 | Q2: 만점 | R2: 100 | X2: 만점
C3: 배점 | D3: =SUM(F6:F45) -> 100 | E3: =IF(D3<D2,"부족",IF(D3>D2,"과함",IF(D3=D2,"OK","오류"))) -> OK | G3: 하 | H3: =COUNTIF(E$6:E$45,G3)&"개 ("&ROUND(COUNTIF(E$6:E$45,G3)/(40-COUNTBLANK(E$6:E$45))*100,0)&"%)" -> 5개 (29%) | J3: =C3 -> 배점 | K3: =SUM(M6:M45) -> 100 | L3: =IF(K3<K2,"부족",IF(K3>K2,"과함",IF(K3=K2,"OK","오류"))) -> OK | N3: 하 | O3: =COUNTIF(L$6:L$45,N3)&"개 ("&ROUND(COUNTIF(L$6:L$45,N3)/(40-COUNTBLANK(L$6:L$45))*100,0)&"%)" -> 7개 (32%) | Q3: =C3 -> 배점 | R3: =SUM(T6:T45) -> 100 | S3: =IF(R3<R2,"부족",IF(R3>R2,"과함",IF(R3=R2,"OK","오류"))) -> OK | U3: 하 | V3: =COUNTIF(S$6:S$45,U3)&"개 ("&ROUND(COUNTIF(S$6:S$45,U3)/(40-COUNTBLANK(S$6:S$45))*100,0)&"%)" -> 8개 (36%) | X3: =C3 -> 배점 | Y3: =SUM(AA6:AA45) -> 0 | Z3: =IF(Y3<Y2,"부족",IF(Y3>Y2,"과함",IF(Y3=Y2,"OK","오류"))) -> OK | AB3: 하 | AC3: =COUNTIF(Z$6:Z$45,AB3)&"개 ("&ROUND(COUNTIF(Z$6:Z$45,AB3)/(40-COUNTBLANK(Z$6:Z$45))*100,0)&"%)" ->  | AE3: 엑셀멘토 WH | AF3: 만든이 JS
C4: 분산 | D4: =VARP(F6:F45) -> 3.884297521 | G4: 중 | H4: =COUNTIF(E$6:E$45,G4)&"개 ("&ROUND(COUNTIF(E$6:E$45,G4)/(40-COUNTBLANK(E$6:E$45))*100,0)&"%)" -> 9개 (53%) | J4: 분산 | K4: =VARP(M6:M45) -> 0.2015702479 | N4: 중 | O4: =COUNTIF(L$6:L$45,N4)&"개 ("&ROUND(COUNTIF(L$6:L$45,N4)/(40-COUNTBLANK(L$6:L$45))*100,0)&"%)" -> 11개 (50%) | Q4: 분산 | R4: =VARP(T6:T45) -> 0.1797520661 | U4: 중 | V4: =COUNTIF(S$6:S$45,U4)&"개 ("&ROUND(COUNTIF(S$6:S$45,U4)/(40-COUNTBLANK(S$6:S$45))*100,0)&"%)" -> 9개 (41%) | X4: 분산 | Y4: =VARP(AA6:AA45) ->  | AB4: 중 | AC4: =COUNTIF(Z$6:Z$45,AB4)&"개 ("&ROUND(COUNTIF(Z$6:Z$45,AB4)/(40-COUNTBLANK(Z$6:Z$45))*100,0)&"%)" ->  | AE4: 난이도
C5: 번호 | D5: 난이도 | F5: 점수 | G5: 상 | H5: 3개 (18%) | J5: 번호 | K5: 난이도 | M5: 점수 | N5: 상 | O5: 4개 (18%) | Q5: 번호 | R5: 난이도 | T5: 점수 | U5: 상 | V5: 5개 (23%) | X5: 번호 | Y5: 난이도 | AA5: 점수 | AB5: 상 | AE5: 입력 | AF5: 결과
C6: 1 | D6: 1 | E6: =IF(D6=1,"하",IF(D6=2,"중",IF(D6=3,"상",""))) -> 하 | F6: 3 | G6: 총 | H6: =COUNTA(D6:D45)&"문항" -> 17문항 | I6: =IF(D6="","",IF(D6=1,IF(F6>MIN(H$16,H$20),2,1),IF(D6=2,IF(F6>H$20,2,1),1))) -> 1 | J6: 1 | K6: 1 | L6: =IF(K6=1,"하",IF(K6=2,"중",IF(K6=3,"상",""))) -> 하 | M6: 4 | N6: 총 | O6: =COUNTA(K6:K45)&"문항" -> 22문항 | P6: =IF(K6="","",IF(K6=1,IF(M6>MIN(O$16,O$20),2,1),IF(K6=2,IF(M6>O$20,2,1),1))) -> 1 | Q6: 1 | R6: 1 | S6: =IF(R6=1,"하",IF(R6=2,"중",IF(R6=3,"상",""))) -> 하 | T6: 4 | U6: 총 | V6: =COUNTA(R6:R45)&"문항" -> 22문항 | W6: =IF(R6="","",IF(R6=1,IF(T6>MIN(V$16,V$20),2,1),IF(R6=2,IF(T6>V$20,2,1),1))) -> 1 | X6: 1 | Z6: =IF(Y6=1,"하",IF(Y6=2,"중",IF(Y6=3,"상",""))) ->  | AB6: 총 | AC6: =COUNTA(Y6:Y45)&"문항" -> 0문항 | AD6: =IF(Y6="","",IF(Y6=1,IF(AA6>MIN(AC$16,AC$20),2,1),IF(Y6=2,IF(AA6>AC$20,2,1),1))) ->  | AE6: 1 | AF6: 하
C7: 2 | D7: 1 | E7: =IF(D7=1,"하",IF(D7=2,"중",IF(D7=3,"상",""))) -> 하 | F7: 3 | I7: =IF(D7="","",IF(D7=1,IF(F7>MIN(H$16,H$20),2,1),IF(D7=2,IF(F7>H$20,2,1),1))) -> 1 | J7: 2 | K7: 1 | L7: =IF(K7=1,"하",IF(K7=2,"중",IF(K7=3,"상",""))) -> 하 | M7: 4 | P7: =IF(K7="","",IF(K7=1,IF(M7>MIN(O$16,O$20),2,1),IF(K7=2,IF(M7>O$20,2,1),1))) -> 1 | Q7: 2 | R7: 1 | S7: =IF(R7=1,"하",IF(R7=2,"중",IF(R7=3,"상",""))) -> 하 | T7: 4 | W7: =IF(R7="","",IF(R7=1,IF(T7>MIN(V$16,V$20),2,1),IF(R7=2,IF(T7>V$20,2,1),1))) -> 1 | X7: 2 | Z7: =IF(Y7=1,"하",IF(Y7=2,"중",IF(Y7=3,"상",""))) ->  | AD7: =IF(Y7="","",IF(Y7=1,IF(AA7>MIN(AC$16,AC$20),2,1),IF(Y7=2,IF(AA7>AC$20,2,1),1))) ->  | AE7: 2 | AF7: 중
C8: 3 | D8: 1 | E8: 하 | F8: 3 | H8: 역배점 | I8: 1 | J8: 3 | K8: 1 | L8: 하 | M8: 4 | O8: 역배점 | P8: 1 | Q8: 3 | R8: 1 | S8: 하 | T8: 4.2 | V8: 역배점 | W8: 1 | X8: 3 | AC8: 역배점 | AE8: 3 | AF8: 상
C9: 4 | D9: 1 | E9: 하 | F9: 3 | H9: 검토 | I9: 1 | J9: 4 | K9: 1 | L9: 하 | M9: 4.1 | O9: 검토 | P9: 1 | Q9: 4 | R9: 1 | S9: 하 | T9: 4.2 | V9: 검토 | W9: 1 | X9: 4 | AC9: 검토
C10: 5 | D10: 1 | E10: 하 | F10: 3 | I10: 1 | J10: 5 | K10: 1 | L10: 하 | M10: 4.1 | P10: 1 | Q10: 5 | R10: 1 | S10: 하 | T10: 4.2 | W10: 1 | X10: 5 | AE10: =#REF! -> 
C11: 6 | D11: 2 | E11: 중 | F11: 3 | H11: 하 | I11: 1 | J11: 6 | K11: 1 | L11: 하 | M11: 4.2 | O11: 하 | P11: 1 | Q11: 6 | R11: 2 | S11: 중 | T11: 4.2 | V11: 하 | W11: 1 | X11: 6 | AC11: 하 | AE11: =#REF! -> 
C12: 7 | D12: 2 | E12: 중 | F12: 3 | G12: 최저 | H12: =INDEX(F$6:F$45,MATCH(MIN(IF(D$6:D$45=1,D$6:D$45,7)*IF(F$6:F$45="",7,F$6:F$45)*1),F$6:F$45,0),) -> 3 | I12: 1 | J12: 7 | K12: 1 | L12: 하 | M12: 4.2 | N12: 최저 | O12: =INDEX(M$6:M$45,MATCH(MIN(IF(K$6:K$45=1,K$6:K$45,7)*IF(M$6:M$45="",7,M$6:M$45)*1),M$6:M$45,0),) -> 4 | P12: 1 | Q12: 7 | R12: 2 | S12: 중 | T12: 4.9 | U12: 최저 | V12: =INDEX(T$6:T$45,MATCH(MIN(IF(R$6:R$45=1,R$6:R$45,7)*IF(T$6:T$45="",7,T$6:T$45)*1),T$6:T$45,0),) -> 4 | W12: 1 | X12: 7 | AB12: 최저 | AC12: =INDEX(AA$6:AA$45,MATCH(MIN(IF(Y$6:Y$45=1,Y$6:Y$45,7)*IF(AA$6:AA$45="",7,AA$6:AA$45)*1),AA$6:AA$45,0),) -> 
C13: 8 | D13: 2 | E13: 중 | F13: 3 | G13: 최고 | H13: =INDEX(F$6:F$45,MATCH(MAX((D$6:D$45=1)*F$6:F$45*1),F$6:F$45,0)) -> 3 | I13: 1 | J13: 8 | K13: 2 | L13: 중 | M13: 4.2 | N13: 최고 | O13: =INDEX(M$6:M$45,MATCH(MAX((K$6:K$45=1)*M$6:M$45*1),M$6:M$45,0)) -> 4.2 | P13: 1 | Q13: 8 | R13: 2 | S13: 중 | T13: 4.4 | U13: 최고 | V13: =INDEX(T$6:T$45,MATCH(MAX((R$6:R$45=1)*T$6:T$45*1),T$6:T$45,0)) -> 4.2 | W13: 1 | X13: 8 | AB13: 최고 | AC13: =INDEX(AA$6:AA$45,MATCH(MAX((Y$6:Y$45=1)*AA$6:AA$45*1),AA$6:AA$45,0)) ->  | AE13: =#REF! -> 
C14: 9 | D14: 2 | E14: 중 | F14: 3 | I14: 1 | J14: 9 | K14: 2 | L14: 중 | M14: 4.2 | P14: 1 | Q14: 9 | R14: 2 | S14: 중 | T14: 4.8 | W14: 1 | X14: 9 | AE14: =#REF! -> 
C15: 10 | D15: 2 | E15: 중 | F15: 3 | H15: 중 | I15: 1 | J15: 10 | K15: 2 | L15: 중 | M15: 4.4 | O15: 중 | P15: 1 | Q15: 10 | R15: 1 | S15: 하 | T15: 4.1 | V15: 중 | W15: 1 | X15: 10 | AC15: 중
C16: 11 | D16: 2 | E16: 중 | F16: 4 | G16: 최저 | H16: =INDEX(F$6:F$45,MATCH(MIN(IF(D$6:D$45=2,1,7)*IF(F$6:F$45="",7,F$6:F$45)*1),F$6:F$45,0),) -> 3 | I16: 1 | J16: 11 | K16: 2 | L16: 중 | M16: 4.4 | N16: 최저 | O16: =INDEX(M$6:M$45,MATCH(MIN(IF(K$6:K$45=2,1,7)*IF(M$6:M$45="",7,M$6:M$45)*1),M$6:M$45,0),) -> 4.2 | P16: 1 | Q16: 11 | R16: 1 | S16: 하 | T16: 4.2 | U16: 최저 | V16: =INDEX(T$6:T$45,MATCH(MIN(IF(R$6:R$45=2,1,7)*IF(T$6:T$45="",7,T$6:T$45)*1),T$6:T$45,0),) -> 4.2 | W16: 1 | X16: 11 | AB16: 최저 | AC16: =INDEX(AA$6:AA$45,MATCH(MIN(IF(Y$6:Y$45=2,1,7)*IF(AA$6:AA$45="",7,AA$6:AA$45)*1),AA$6:AA$45,0),) ->  | AE16: =#REF! -> 
C17: 12 | D17: 2 | E17: 중 | F17: 4 | G17: 최고 | H17: =INDEX(F$6:F$45,MATCH(MAX((D$6:D$45=2)*F$6:F$45),F$6:F$45,0)) -> 4 | I17: 1 | J17: 12 | K17: 2 | L17: 중 | M17: 4.5 | N17: 최고 | O17: =INDEX(M$6:M$45,MATCH(MAX((K$6:K$45=2)*M$6:M$45),M$6:M$45,0)) -> 5 | P17: 1 | Q17: 12 | R17: 2 | S17: 중 | T17: 4.9 | U17: 최고 | V17: =INDEX(T$6:T$45,MATCH(MAX((R$6:R$45=2)*T$6:T$45),T$6:T$45,0)) -> 4.9 | W17: 1 | X17: 12 | AB17: 최고 | AC17: =INDEX(AA$6:AA$45,MATCH(MAX((Y$6:Y$45=2)*AA$6:AA$45),AA$6:AA$45,0)) ->  | AE17: =#REF! -> 
C18: 13 | D18: 2 | E18: 중 | F18: 4 | I18: 1 | J18: 13 | K18: 2 | L18: 중 | M18: 4.5 | P18: 1 | Q18: 13 | R18: 3 | S18: 상 | T18: 5 | W18: 1 | X18: 13 | AE18: =#REF! -> 
C19: 14 | D19: 2 | E19: 중 | F19: 4 | H19: 상 | I19: 1 | J19: 14 | K19: 2 | L19: 중 | M19: 4.7 | O19: 상 | P19: 1 | Q19: 14 | R19: 1 | S19: 하 | T19: 4.1 | V19: 상 | W19: 1 | X19: 14 | AC19: 상 | AE19: =#REF! -> 
C20: 15 | D20: 3 | E20: 상 | F20: 4 | G20: 최저 | H20: =INDEX(F$6:F$45,MATCH(MIN(IF(D$6:D$45=3,1,7)*IF(F$6:F$45="",7,F$6:F$45)*1),F$6:F$45,0),) -> 4 | I20: 1 | J20: 15 | K20: 2 | L20: 중 | M20: 4.7 | N20: 최저 | O20: =INDEX(M$6:M$45,MATCH(MIN(IF(K$6:K$45=3,1,7)*IF(M$6:M$45="",7,M$6:M$45)*1),M$6:M$45,0),) -> 5 | P20: 1 | Q20: 15 | R20: 2 | S20: 중 | T20: 4.4 | U20: 최저 | V20: =INDEX(T$6:T$45,MATCH(MIN(IF(R$6:R$45=3,1,7)*IF(T$6:T$45="",7,T$6:T$45)*1),T$6:T$45,0),) -> 5 | W20: 1 | X20: 15 | AB20: 최저 | AC20: =INDEX(AA$6:AA$45,MATCH(MIN(IF(Y$6:Y$45=3,1,7)*IF(AA$6:AA$45="",7,AA$6:AA$45)*1),AA$6:AA$45,0),) ->  | AE20: =#REF! -> 
C21: 16 | D21: 3 | E21: 상 | F21: 5 | G21: 최고 | H21: =INDEX(F$6:F$45,MATCH(MAX((D$6:D$45=3)*F$6:F$45),F$6:F$45,0)) -> 5 | I21: 1 | J21: 16 | K21: 2 | L21: 중 | M21: 4.9 | N21: 최고 | O21: =INDEX(M$6:M$45,MATCH(MAX((K$6:K$45=3)*M$6:M$45),M$6:M$45,0)) -> 5.5 | P21: 1 | Q21: 16 | R21: 2 | S21: 중 | T21: 4.6 | U21: 최고 | V21: =INDEX(T$6:T$45,MATCH(MAX((R$6:R$45=3)*T$6:T$45),T$6:T$45,0)) -> 5.4 | W21: 1 | X21: 16 | AB21: 최고 | AC21: =INDEX(AA$6:AA$45,MATCH(MAX((Y$6:Y$45=3)*AA$6:AA$45),AA$6:AA$45,0)) ->  | AE21: =#REF! -> 
C22: 17 | D22: 3 | E22: 상 | F22: 5 | I22: 1 | J22: 17 | K22: 2 | L22: 중 | M22: 4.9 | P22: 1 | Q22: 17 | R22: 3 | S22: 상 | T22: 5 | W22: 1 | X22: 17 | AE22: =#REF! -> 
C23: 18 | F23: 8 | J23: 18 | K23: 2 | L23: 중 | M23: 5 | P23: 1 | Q23: 18 | R23: 2 | S23: 중 | T23: 4.3 | W23: 1 | X23: 18 | AE23: =#REF! -> 
C24: 19 | F24: 8 | J24: 19 | K24: 3 | L24: 상 | M24: 5 | P24: 1 | Q24: 19 | R24: 2 | S24: 중 | T24: 4.8 | W24: 1 | X24: 19 | AE24: =#REF! -> 
C25: 20 | F25: 8 | J25: 20 | K25: 3 | L25: 상 | M25: 5.2 | P25: 1 | Q25: 20 | R25: 3 | S25: 상 | T25: 5.1 | W25: 1 | X25: 20 | AE25: =#REF! -> 
C26: 21 | F26: 8 | J26: 21 | K26: 3 | L26: 상 | M26: 5.3 | P26: 1 | Q26: 21 | R26: 3 | S26: 상 | T26: 5.2 | W26: 1 | X26: 21 | AE26: =#REF! -> 
C27: 22 | F27: 8 | J27: 22 | K27: 3 | L27: 상 | M27: 5.5 | P27: 1 | Q27: 22 | R27: 3 | S27: 상 | T27: 5.4 | W27: 1 | X27: 22
C28: 23 | J28: 23 | Q28: 23 | X28: 23 | AE28: =#REF! -> 
C29: 24 | J29: 24 | Q29: 24 | X29: 24 | AE29: =#REF! -> 
C30: 25 | J30: 25 | Q30: 25 | X30: 25 | AE30: =#REF! -> 
C31: 26 | J31: 26 | Q31: 26 | X31: 26 | AE31: =#REF! -> 
C32: 27 | J32: 27 | Q32: 27 | X32: 27
C33: 28 | J33: 28 | Q33: 28 | X33: 28
C34: 29 | J34: 29 | Q34: 29 | X34: 29
C35: 30 | J35: 30 | Q35: 30 | X35: 30
C36: 31 | J36: 31 | Q36: 31 | X36: 31
C37: 32 | J37: 32 | Q37: 32 | X37: 32
C38: 33 | J38: 33 | Q38: 33 | X38: 33
C39: 34 | J39: 34 | Q39: 34 | X39: 34
C40: 35 | J40: 35 | L40: =IF(K40=1,"하",IF(K40=2,"중",IF(K40=3,"상",""))) ->  | Q40: 35 | S40: =IF(R40=1,"하",IF(R40=2,"중",IF(R40=3,"상",""))) ->  | X40: 35 | Z40: =IF(Y40=1,"하",IF(Y40=2,"중",IF(Y40=3,"상",""))) -> 
C41: 36 | J41: 36 | Q41: 36 | X41: 36
C42: 37 | J42: 37 | Q42: 37 | X42: 37
C43: 38 | J43: 38 | Q43: 38 | X43: 38
C44: 39 | J44: 39 | Q44: 39 | X44: 39
C45: 40 | J45: 40 | Q45: 40 | X45: 40

Sheet 문항번호 (hidden)
H6: 총갯수
B7: 계 | C7: =SUM(C10:C59) -> 0 | D7: =SUM(D10:D59) -> 0 | E7: 0 | F7: 0 | G7: 1 | H7: =SUM(C7:G7) -> 1
B8: 보기 | C8: 1 | D8: 2 | E8: 3 | F8: 4 | G8: 5
B9: 문항번호
B10: 1 | G10: 1
B11: 2
B12: 3
B13: 4
B14: 5
B15: 6
B16: 7
B17: 8
B18: 9
B19: 10
B20: 11
B21: 12
B22: 13
B23: 14
B24: 15
B25: 16
B26: 17
B27: 18
B28: 19
B29: 20
B30: 21
B31: 22
B32: 23
B33: 24
B34: 25
B35: 26
B36: 27
B37: 28
B38: 29
B39: 30
B40: 31
B41: 32
B42: 33
B43: 34
B44: 35
B45: 36
B46: 37
B47: 38
B48: 39
B49: 40
B50: 41
B51: 42
B52: 43
B53: 44
B54: 45
B55: 46
B56: 47
B57: 48
B58: 49
B59: 50

Sheet 배점5~8안
P1: zcrong
C2: 만점 | D2: 100 | J2: 만점 | K2: 100 | Q2: 만점 | R2: 100 | X2: 만점 | Y2: 100
C3: 배점 | D3: =SUM(F6:F45) -> 100 | E3: =IF(D3<D2,"부족",IF(D3>D2,"과함",IF(D3=D2,"OK","오류"))) -> OK | G3: 하 | H3: =COUNTIF(E$6:E$45,G3)&"개 ("&ROUND(COUNTIF(E$6:E$45,G3)/(40-COUNTBLANK(E$6:E$45))*100,0)&"%)" -> 10개 (26%) | J3: =C3 -> 배점 | K3: =SUM(M6:M45) -> 100 | L3: =IF(K3<K2,"부족",IF(K3>K2,"과함",IF(K3=K2,"OK","오류"))) -> OK | N3: 하 | O3: =COUNTIF(L$6:L$45,N3)&"개 ("&ROUND(COUNTIF(L$6:L$45,N3)/(40-COUNTBLANK(L$6:L$45))*100,0)&"%)" -> 10개 (30%) | Q3: =C3 -> 배점 | R3: =SUM(T6:T45) -> 100 | S3: =IF(R3<R2,"부족",IF(R3>R2,"과함",IF(R3=R2,"OK","오류"))) -> OK | U3: 하 | V3: =COUNTIF(S$6:S$45,U3)&"개 ("&ROUND(COUNTIF(S$6:S$45,U3)/(40-COUNTBLANK(S$6:S$45))*100,0)&"%)" -> 10개 (29%) | X3: =C3 -> 배점 | Y3: =SUM(AA6:AA45) -> 100 | Z3: =IF(Y3<Y2,"부족",IF(Y3>Y2,"과함",IF(Y3=Y2,"OK","오류"))) -> OK | AB3: 하 | AC3: =COUNTIF(Z$6:Z$45,AB3)&"개 ("&ROUND(COUNTIF(Z$6:Z$45,AB3)/(40-COUNTBLANK(Z$6:Z$45))*100,0)&"%)" -> 10개 (29%) | AE3: 엑셀멘토 WH | AF3: 만든이 JS
C4: 분산 | D4: =VARP(F6:F45) -> 0.0187113741 | G4: 중 | H4: =COUNTIF(E$6:E$45,G4)&"개 ("&ROUND(COUNTIF(E$6:E$45,G4)/(40-COUNTBLANK(E$6:E$45))*100,0)&"%)" -> 12개 (31%) | J4: 분산 | K4: =VARP(M6:M45) -> 0.02938475666 | N4: 중 | O4: =COUNTIF(L$6:L$45,N4)&"개 ("&ROUND(COUNTIF(L$6:L$45,N4)/(40-COUNTBLANK(L$6:L$45))*100,0)&"%)" -> 12개 (36%) | Q4: 분산 | R4: =VARP(T6:T45) -> 0.02930612245 | U4: 중 | V4: =COUNTIF(S$6:S$45,U4)&"개 ("&ROUND(COUNTIF(S$6:S$45,U4)/(40-COUNTBLANK(S$6:S$45))*100,0)&"%)" -> 12개 (34%) | X4: 분산 | Y4: =VARP(AA6:AA45) -> 0.02930612245 | AB4: 중 | AC4: =COUNTIF(Z$6:Z$45,AB4)&"개 ("&ROUND(COUNTIF(Z$6:Z$45,AB4)/(40-COUNTBLANK(Z$6:Z$45))*100,0)&"%)" -> 12개 (34%) | AE4: 난이도
C5: 번호 | D5: 난이도 | F5: 점수 | G5: 상 | H5: 17개 (44%) | J5: 번호 | K5: 난이도 | M5: 점수 | N5: 상 | O5: 11개 (33%) | Q5: 번호 | R5: 난이도 | T5: 점수 | U5: 상 | V5: 13개 (37%) | X5: 번호 | Y5: 난이도 | AA5: 점수 | AB5: 상 | AC5: 13개 (37%) | AE5: 입력 | AF5: 결과
C6: 1 | D6: 1 | E6: =IF(D6=1,"하",IF(D6=2,"중",IF(D6=3,"상",""))) -> 하 | F6: 2.2 | G6: 총 | H6: =COUNTA(D6:D45)&"문항" -> 39문항 | I6: =IF(D6="","",IF(D6=1,IF(F6>MIN(H$16,H$20),2,1),IF(D6=2,IF(F6>H$20,2,1),1))) -> 1 | J6: 1 | K6: 1 | L6: =IF(K6=1,"하",IF(K6=2,"중",IF(K6=3,"상",""))) -> 하 | M6: 2.6 | N6: 총 | O6: =COUNTA(K6:K45)&"문항" -> 33문항 | P6: =IF(K6="","",IF(K6=1,IF(M6>MIN(O$16,O$20),2,1),IF(K6=2,IF(M6>O$20,2,1),1))) -> 1 | Q6: 1 | R6: 1 | S6: =IF(R6=1,"하",IF(R6=2,"중",IF(R6=3,"상",""))) -> 하 | T6: 2.5 | U6: 총 | V6: =COUNTA(R6:R45)&"문항" -> 35문항 | W6: =IF(R6="","",IF(R6=1,IF(T6>MIN(V$16,V$20),2,1),IF(R6=2,IF(T6>V$20,2,1),1))) -> 1 | X6: 1 | Y6: 1 | Z6: =IF(Y6=1,"하",IF(Y6=2,"중",IF(Y6=3,"상",""))) -> 하 | AA6: 2.5 | AB6: 총 | AC6: =COUNTA(Y6:Y45)&"문항" -> 35문항 | AD6: =IF(Y6="","",IF(Y6=1,IF(AA6>MIN(AC$16,AC$20),2,1),IF(Y6=2,IF(AA6>AC$20,2,1),1))) -> 1 | AE6: 1 | AF6: 하
C7: 2 | D7: 1 | E7: =IF(D7=1,"하",IF(D7=2,"중",IF(D7=3,"상",""))) -> 하 | F7: 2.2 | I7: =IF(D7="","",IF(D7=1,IF(F7>MIN(H$16,H$20),2,1),IF(D7=2,IF(F7>H$20,2,1),1))) -> 1 | J7: 2 | K7: 1 | L7: =IF(K7=1,"하",IF(K7=2,"중",IF(K7=3,"상",""))) -> 하 | M7: 2.6 | P7: =IF(K7="","",IF(K7=1,IF(M7>MIN(O$16,O$20),2,1),IF(K7=2,IF(M7>O$20,2,1),1))) -> 1 | Q7: 2 | R7: 1 | S7: =IF(R7=1,"하",IF(R7=2,"중",IF(R7=3,"상",""))) -> 하 | T7: 2.5 | W7: =IF(R7="","",IF(R7=1,IF(T7>MIN(V$16,V$20),2,1),IF(R7=2,IF(T7>V$20,2,1),1))) -> 1 | X7: 2 | Y7: 1 | Z7: =IF(Y7=1,"하",IF(Y7=2,"중",IF(Y7=3,"상",""))) -> 하 | AA7: 2.5 | AD7: =IF(Y7="","",IF(Y7=1,IF(AA7>MIN(AC$16,AC$20),2,1),IF(Y7=2,IF(AA7>AC$20,2,1),1))) -> 1 | AE7: 2 | AF7: 중
C8: 3 | D8: 1 | E8: 하 | F8: 2.3 | H8: 역배점 | I8: 1 | J8: 3 | K8: 1 | L8: 하 | M8: 2.7 | O8: 역배점 | P8: 1 | Q8: 3 | R8: 1 | S8: 하 | T8: 2.6 | V8: 역배점 | W8: 1 | X8: 3 | Y8: 1 | Z8: 하 | AA8: 2.6 | AC8: 역배점 | AD8: 1 | AE8: 3 | AF8: 상
C9: 4 | D9: 1 | E9: 하 | F9: 2.3 | H9: 검토 | I9: 1 | J9: 4 | K9: 1 | L9: 하 | M9: 2.7 | O9: 검토 | P9: 1 | Q9: 4 | R9: 1 | S9: 하 | T9: 2.6 | V9: 검토 | W9: 1 | X9: 4 | Y9: 1 | Z9: 하 | AA9: 2.6 | AC9: 검토 | AD9: 1
C10: 5 | D10: 1 | E10: 하 | F10: 2.4 | I10: 1 | J10: 5 | K10: 1 | L10: 하 | M10: 2.9 | P10: 1 | Q10: 5 | R10: 1 | S10: 하 | T10: 2.7 | W10: 1 | X10: 5 | Y10: 1 | Z10: 하 | AA10: 2.7 | AD10: 1 | AE10: =#REF! -> 
C11: 6 | D11: 1 | E11: 하 | F11: 2.4 | H11: 하 | I11: 1 | J11: 6 | K11: 1 | L11: 하 | M11: 2.9 | O11: 하 | P11: 1 | Q11: 6 | R11: 1 | S11: 하 | T11: 2.7 | V11: 하 | W11: 1 | X11: 6 | Y11: 1 | Z11: 하 | AA11: 2.7 | AC11: 하 | AD11: 1 | AE11: =#REF! -> 
C12: 7 | D12: 1 | E12: 하 | F12: 2.4 | G12: 최저 | H12: =INDEX(F$6:F$45,MATCH(MIN(IF(D$6:D$45=1,D$6:D$45,7)*IF(F$6:F$45="",7,F$6:F$45)*1),F$6:F$45,0),) -> 2.2 | I12: 1 | J12: 7 | K12: 1 | L12: 하 | M12: 2.9 | N12: 최저 | O12: =INDEX(M$6:M$45,MATCH(MIN(IF(K$6:K$45=1,K$6:K$45,7)*IF(M$6:M$45="",7,M$6:M$45)*1),M$6:M$45,0),) -> 2.6 | P12: 1 | Q12: 7 | R12: 1 | S12: 하 | T12: 2.7 | U12: 최저 | V12: =INDEX(T$6:T$45,MATCH(MIN(IF(R$6:R$45=1,R$6:R$45,7)*IF(T$6:T$45="",7,T$6:T$45)*1),T$6:T$45,0),) -> 2.5 | W12: 1 | X12: 7 | Y12: 1 | Z12: 하 | AA12: 2.7 | AB12: 최저 | AC12: =INDEX(AA$6:AA$45,MATCH(MIN(IF(Y$6:Y$45=1,Y$6:Y$45,7)*IF(AA$6:AA$45="",7,AA$6:AA$45)*1),AA$6:AA$45,0),) -> 2.5 | AD12: 1
C13: 8 | D13: 1 | E13: 하 | F13: 2.5 | G13: 최고 | H13: =INDEX(F$6:F$45,MATCH(MAX((D$6:D$45=1)*F$6:F$45*1),F$6:F$45,0)) -> 2.5 | I13: 1 | J13: 8 | K13: 1 | L13: 하 | M13: 3 | N13: 최고 | O13: =INDEX(M$6:M$45,MATCH(MAX((K$6:K$45=1)*M$6:M$45*1),M$6:M$45,0)) -> 3 | P13: 1 | Q13: 8 | R13: 1 | S13: 하 | T13: 2.8 | U13: 최고 | V13: =INDEX(T$6:T$45,MATCH(MAX((R$6:R$45=1)*T$6:T$45*1),T$6:T$45,0)) -> 2.8 | W13: 1 | X13: 8 | Y13: 1 | Z13: 하 | AA13: 2.8 | AB13: 최고 | AC13: =INDEX(AA$6:AA$45,MATCH(MAX((Y$6:Y$45=1)*AA$6:AA$45*1),AA$6:AA$45,0)) -> 2.8 | AD13: 1 | AE13: =#REF! -> 
C14: 9 | D14: 1 | E14: 하 | F14: 2.5 | I14: 1 | J14: 9 | K14: 1 | L14: 하 | M14: 3 | P14: 1 | Q14: 9 | R14: 1 | S14: 하 | T14: 2.8 | W14: 1 | X14: 9 | Y14: 1 | Z14: 하 | AA14: 2.8 | AD14: 1 | AE14: =#REF! -> 
C15: 10 | D15: 1 | E15: 하 | F15: 2.5 | H15: 중 | I15: 1 | J15: 10 | K15: 1 | L15: 하 | M15: 3 | O15: 중 | P15: 1 | Q15: 10 | R15: 1 | S15: 하 | T15: 2.8 | V15: 중 | W15: 1 | X15: 10 | Y15: 1 | Z15: 하 | AA15: 2.8 | AC15: 중 | AD15: 1
C16: 11 | D16: 2 | E16: 중 | F16: 2.5 | G16: 최저 | H16: =INDEX(F$6:F$45,MATCH(MIN(IF(D$6:D$45=2,1,7)*IF(F$6:F$45="",7,F$6:F$45)*1),F$6:F$45,0),) -> 2.5 | I16: 1 | J16: 11 | K16: 2 | L16: 중 | M16: 3 | N16: 최저 | O16: =INDEX(M$6:M$45,MATCH(MIN(IF(K$6:K$45=2,1,7)*IF(M$6:M$45="",7,M$6:M$45)*1),M$6:M$45,0),) -> 3 | P16: 1 | Q16: 11 | R16: 2 | S16: 중 | T16: 2.8 | U16: 최저 | V16: =INDEX(T$6:T$45,MATCH(MIN(IF(R$6:R$45=2,1,7)*IF(T$6:T$45="",7,T$6:T$45)*1),T$6:T$45,0),) -> 2.8 | W16: 1 | X16: 11 | Y16: 2 | Z16: 중 | AA16: 2.8 | AB16: 최저 | AC16: =INDEX(AA$6:AA$45,MATCH(MIN(IF(Y$6:Y$45=2,1,7)*IF(AA$6:AA$45="",7,AA$6:AA$45)*1),AA$6:AA$45,0),) -> 2.8 | AD16: 1 | AE16: =#REF! -> 
C17: 12 | D17: 2 | E17: 중 | F17: 2.5 | G17: 최고 | H17: =INDEX(F$6:F$45,MATCH(MAX((D$6:D$45=2)*F$6:F$45),F$6:F$45,0)) -> 2.6 | I17: 1 | J17: 12 | K17: 2 | L17: 중 | M17: 3 | N17: 최고 | O17: =INDEX(M$6:M$45,MATCH(MAX((K$6:K$45=2)*M$6:M$45),M$6:M$45,0)) -> 3.1 | P17: 1 | Q17: 12 | R17: 2 | S17: 중 | T17: 2.8 | U17: 최고 | V17: =INDEX(T$6:T$45,MATCH(MAX((R$6:R$45=2)*T$6:T$45),T$6:T$45,0)) -> 2.9 | W17: 1 | X17: 12 | Y17: 2 | Z17: 중 | AA17: 2.8 | AB17: 최고 | AC17: =INDEX(AA$6:AA$45,MATCH(MAX((Y$6:Y$45=2)*AA$6:AA$45),AA$6:AA$45,0)) -> 2.9 | AD17: 1 | AE17: =#REF! -> 
C18: 13 | D18: 2 | E18: 중 | F18: 2.6 | I18: 1 | J18: 13 | K18: 2 | L18: 중 | M18: 3 | P18: 1 | Q18: 13 | R18: 2 | S18: 중 | T18: 2.8 | W18: 1 | X18: 13 | Y18: 2 | Z18: 중 | AA18: 2.8 | AD18: 1 | AE18: =#REF! -> 
C19: 14 | D19: 2 | E19: 중 | F19: 2.6 | H19: 상 | I19: 1 | J19: 14 | K19: 2 | L19: 중 | M19: 3 | O19: 상 | P19: 1 | Q19: 14 | R19: 2 | S19: 중 | T19: 2.8 | V19: 상 | W19: 1 | X19: 14 | Y19: 2 | Z19: 중 | AA19: 2.8 | AC19: 상 | AD19: 1 | AE19: =#REF! -> 
C20: 15 | D20: 2 | E20: 중 | F20: 2.6 | G20: 최저 | H20: =INDEX(F$6:F$45,MATCH(MIN(IF(D$6:D$45=3,1,7)*IF(F$6:F$45="",7,F$6:F$45)*1),F$6:F$45,0),) -> 2.6 | I20: 1 | J20: 15 | K20: 2 | L20: 중 | M20: 3 | N20: 최저 | O20: =INDEX(M$6:M$45,MATCH(MIN(IF(K$6:K$45=3,1,7)*IF(M$6:M$45="",7,M$6:M$45)*1),M$6:M$45,0),) -> 3.1 | P20: 1 | Q20: 15 | R20: 2 | S20: 중 | T20: 2.8 | U20: 최저 | V20: =INDEX(T$6:T$45,MATCH(MIN(IF(R$6:R$45=3,1,7)*IF(T$6:T$45="",7,T$6:T$45)*1),T$6:T$45,0),) -> 2.9 | W20: 1 | X20: 15 | Y20: 2 | Z20: 중 | AA20: 2.8 | AB20: 최저 | AC20: =INDEX(AA$6:AA$45,MATCH(MIN(IF(Y$6:Y$45=3,1,7)*IF(AA$6:AA$45="",7,AA$6:AA$45)*1),AA$6:AA$45,0),) -> 2.9 | AD20: 1 | AE20: =#REF! -> 
C21: 16 | D21: 2 | E21: 중 | F21: 2.6 | G21: 최고 | H21: =INDEX(F$6:F$45,MATCH(MAX((D$6:D$45=3)*F$6:F$45),F$6:F$45,0)) -> 2.7 | I21: 1 | J21: 16 | K21: 2 | L21: 중 | M21: 3.1 | N21: 최고 | O21: =INDEX(M$6:M$45,MATCH(MAX((K$6:K$45=3)*M$6:M$45),M$6:M$45,0)) -> 3.3 | P21: 1 | Q21: 16 | R21: 2 | S21: 중 | T21: 2.8 | U21: 최고 | V21: =INDEX(T$6:T$45,MATCH(MAX((R$6:R$45=3)*T$6:T$45),T$6:T$45,0)) -> 3.2 | W21: 1 | X21: 16 | Y21: 2 | Z21: 중 | AA21: 2.8 | AB21: 최고 | AC21: =INDEX(AA$6:AA$45,MATCH(MAX((Y$6:Y$45=3)*AA$6:AA$45),AA$6:AA$45,0)) -> 3.2 | AD21: 1 | AE21: =#REF! -> 
C22: 17 | D22: 2 | E22: 중 | F22: 2.6 | I22: 1 | J22: 17 | K22: 2 | L22: 중 | M22: 3.1 | P22: 1 | Q22: 17 | R22: 2 | S22: 중 | T22: 2.8 | W22: 1 | X22: 17 | Y22: 2 | Z22: 중 | AA22: 2.8 | AD22: 1 | AE22: =#REF! -> 
C23: 18 | D23: 2 | E23: 중 | F23: 2.6 | I23: 1 | J23: 18 | K23: 2 | L23: 중 | M23: 3.1 | P23: 1 | Q23: 18 | R23: 2 | S23: 중 | T23: 2.8 | W23: 1 | X23: 18 | Y23: 2 | Z23: 중 | AA23: 2.8 | AD23: 1 | AE23: =#REF! -> 
C24: 19 | D24: 2 | E24: 중 | F24: 2.6 | I24: 1 | J24: 19 | K24: 2 | L24: 중 | M24: 3.1 | P24: 1 | Q24: 19 | R24: 2 | S24: 중 | T24: 2.8 | W24: 1 | X24: 19 | Y24: 2 | Z24: 중 | AA24: 2.8 | AD24: 1 | AE24: =#REF! -> 
C25: 20 | D25: 2 | E25: 중 | F25: 2.6 | I25: 1 | J25: 20 | K25: 2 | L25: 중 | M25: 3.1 | P25: 1 | Q25: 20 | R25: 2 | S25: 중 | T25: 2.9 | W25: 1 | X25: 20 | Y25: 2 | Z25: 중 | AA25: 2.9 | AD25: 1 | AE25: =#REF! -> 
C26: 21 | D26: 2 | E26: 중 | F26: 2.6 | I26: 1 | J26: 21 | K26: 2 | L26: 중 | M26: 3.1 | P26: 1 | Q26: 21 | R26: 2 | S26: 중 | T26: 2.9 | W26: 1 | X26: 21 | Y26: 2 | Z26: 중 | AA26: 2.9 | AD26: 1 | AE26: =#REF! -> 
C27: 22 | D27: 2 | E27: 중 | F27: 2.6 | I27: 1 | J27: 22 | K27: 2 | L27: 중 | M27: 3.1 | P27: 1 | Q27: 22 | R27: 2 | S27: 중 | T27: 2.9 | W27: 1 | X27: 22 | Y27: 2 | Z27: 중 | AA27: 2.9 | AD27: 1
C28: 23 | D28: 3 | E28: 상 | F28: 2.6 | I28: 1 | J28: 23 | K28: 3 | L28: 상 | M28: 3.1 | P28: 1 | Q28: 23 | R28: 3 | S28: 상 | T28: 2.9 | W28: 1 | X28: 23 | Y28: 3 | Z28: 상 | AA28: 2.9 | AD28: 1 | AE28: =#REF! -> 
C29: 24 | D29: 3 | E29: 상 | F29: 2.6 | I29: 1 | J29: 24 | K29: 3 | L29: 상 | M29: 3.1 | P29: 1 | Q29: 24 | R29: 3 | S29: 상 | T29: 2.9 | W29: 1 | X29: 24 | Y29: 3 | Z29: 상 | AA29: 2.9 | AD29: 1 | AE29: =#REF! -> 
C30: 25 | D30: 3 | E30: 상 | F30: 2.6 | I30: 1 | J30: 25 | K30: 3 | L30: 상 | M30: 3.1 | P30: 1 | Q30: 25 | R30: 3 | S30: 상 | T30: 2.9 | W30: 1 | X30: 25 | Y30: 3 | Z30: 상 | AA30: 2.9 | AD30: 1 | AE30: =#REF! -> 
C31: 26 | D31: 3 | E31: 상 | F31: 2.6 | I31: 1 | J31: 26 | K31: 3 | L31: 상 | M31: 3.2 | P31: 1 | Q31: 26 | R31: 3 | S31: 상 | T31: 3 | W31: 1 | X31: 26 | Y31: 3 | Z31: 상 | AA31: 3 | AD31: 1 | AE31: =#REF! -> 
C32: 27 | D32: 3 | E32: 상 | F32: 2.6 | I32: 1 | J32: 27 | K32: 3 | L32: 상 | M32: 3.2 | P32: 1 | Q32: 27 | R32: 3 | S32: 상 | T32: 3 | W32: 1 | X32: 27 | Y32: 3 | Z32: 상 | AA32: 3 | AD32: 1
C33: 28 | D33: 3 | E33: 상 | F33: 2.6 | I33: 1 | J33: 28 | K33: 3 | L33: 상 | M33: 3.2 | P33: 1 | Q33: 28 | R33: 3 | S33: 상 | T33: 3 | W33: 1 | X33: 28 | Y33: 3 | Z33: 상 | AA33: 3 | AD33: 1
C34: 29 | D34: 3 | E34: 상 | F34: 2.7 | I34: 1 | J34: 29 | K34: 3 | L34: 상 | M34: 3.2 | P34: 1 | Q34: 29 | R34: 3 | S34: 상 | T34: 3 | W34: 1 | X34: 29 | Y34: 3 | Z34: 상 | AA34: 3 | AD34: 1
C35: 30 | D35: 3 | E35: 상 | F35: 2.7 | I35: 1 | J35: 30 | K35: 3 | L35: 상 | M35: 3.2 | P35: 1 | Q35: 30 | R35: 3 | S35: 상 | T35: 3 | W35: 1 | X35: 30 | Y35: 3 | Z35: 상 | AA35: 3 | AD35: 1
C36: 31 | D36: 3 | E36: 상 | F36: 2.7 | I36: 1 | J36: 31 | K36: 3 | L36: 상 | M36: 3.2 | P36: 1 | Q36: 31 | R36: 3 | S36: 상 | T36: 3.1 | W36: 1 | X36: 31 | Y36: 3 | Z36: 상 | AA36: 3.1 | AD36: 1
C37: 32 | D37: 3 | E37: 상 | F37: 2.7 | I37: 1 | J37: 32 | K37: 3 | L37: 상 | M37: 3.2 | P37: 1 | Q37: 32 | R37: 3 | S37: 상 | T37: 3.1 | W37: 1 | X37: 32 | Y37: 3 | Z37: 상 | AA37: 3.1 | AD37: 1
C38: 33 | D38: 3 | E38: 상 | F38: 2.7 | I38: 1 | J38: 33 | K38: 3 | L38: 상 | M38: 3.3 | P38: 1 | Q38: 33 | R38: 3 | S38: 상 | T38: 3.1 | W38: 1 | X38: 33 | Y38: 3 | Z38: 상 | AA38: 3.1 | AD38: 1
C39: 34 | D39: 3 | E39: 상 | F39: 2.7 | I39: 1 | J39: 34 | Q39: 34 | R39: 3 | S39: 상 | T39: 3.2 | W39: 1 | X39: 34 | Y39: 3 | Z39: 상 | AA39: 3.2 | AD39: 1
C40: 35 | D40: 3 | E40: 상 | F40: 2.7 | I40: 1 | J40: 35 | L40: =IF(K40=1,"하",IF(K40=2,"중",IF(K40=3,"상",""))) ->  | Q40: 35 | R40: 3 | S40: =IF(R40=1,"하",IF(R40=2,"중",IF(R40=3,"상",""))) -> 상 | T40: 3.2 | W40: 1 | X40: 35 | Y40: 3 | Z40: 상 | AA40: 3.2 | AD40: 1
C41: 36 | D41: 3 | E41: 상 | F41: 2.7 | I41: 1 | J41: 36 | Q41: 36 | X41: 36
C42: 37 | D42: 3 | E42: 상 | F42: 2.7 | I42: 1 | J42: 37 | Q42: 37 | X42: 37
C43: 38 | D43: 3 | E43: 상 | F43: 2.7 | I43: 1 | J43: 38 | Q43: 38 | X43: 38
C44: 39 | D44: 3 | E44: 상 | F44: 2.7 | I44: 1 | J44: 39 | Q44: 39 | X44: 39
C45: 40 | J45: 40 | Q45: 40 | X45: 40

Sheet 비율1~4안
E1: * 서술형 평가는 지필평가 내에서 20% 이상
D2: 1안 | F2: 시험1 | G2: 시험2 | H2: 시험3 | I2: 시험4 | J2: 시험5 | K2: 점검 | M2: 2안 | O2: 시험1 | P2: 시험2 | Q2: 시험3 | R2: 시험4 | S2: 시험5 | T2: 점검
F3: 중간고사 | G3: 기말고사 | H3: 수행평가 | O3: 중간고사 | P3: 기말고사 | Q3: 수행평가
E4: 비율 | F4: 40 | G4: 40 | H4: 20 | K4: =SUM(F4:J4) -> 100 | N4: 비율 | O4: 40 | P4: 40 | Q4: 20 | T4: =SUM(O4:S4) -> 100
E5: 합계 | F5: =IF(SUM(F6:F7)=0,"",SUM(F6:F7)) -> 100 | G5: =IF(SUM(G6:G7)=0,"",SUM(G6:G7)) -> 100 | N5: 합계 | O5: =IF(SUM(O6:O7)=0,"",SUM(O6:O7)) -> 100 | P5: =IF(SUM(P6:P7)=0,"",SUM(P6:P7)) -> 100
E6: 지필 | F6: 60 | G6: 80 | N6: 지필 | O6: 60 | P6: 100
E7: 서술 | F7: 40 | G7: 20 | N7: 서술 | O7: 40
E8: 수행 | H8: 100 | N8: 수행 | Q8: 100
E9: =IF(E6="","",E6&" % ") -> 지필 % | F9: =IF(F6="","",F6*F$4/100) -> 24 | G9: =IF(G6="","",G6*G$4/100) -> 32 | K9: =SUM(F9:J11) -> 100 | N9: =IF(N6="","",N6&" % ") -> 지필 % | O9: =IF(O6="","",O6*O$4/100) -> 24 | P9: =IF(P6="","",P6*P$4/100) -> 40 | T9: =SUM(O9:S11) -> 100
E10: =IF(E7="","",E7&" % ") -> 서술 % | F10: =IF(F7="","",F7*F$4/100) -> 16 | G10: 8 | N10: =IF(N7="","",N7&" % ") -> 서술 % | O10: =IF(O7="","",O7*O$4/100) -> 16 | P10: =IF(P7="","",P7*P$4/100) -> 
E11: 수행% | F11: =IF(F8="","",F8*F$4/100) ->  | H11: 20 | N11: 수행% | O11: =IF(O8="","",O8*O$4/100) ->  | P11: =IF(P8="","",P8*P$4/100) ->  | Q11: 20
D12: (지필내서술비율) | F12: =F7*F4/($F$4*SUM($F$6:$F$7)+$G$4*SUM($G$6:$G$7)+$H$4*SUM($H$6:$H$7)+$I$4*SUM($I$6:$I$7)+$J$4*SUM($J$6:$J$7))*100 -> 20 | G12: =G7*G4/($F$4*SUM($F$6:$F$7)+$G$4*SUM($G$6:$G$7)+$H$4*SUM($H$6:$H$7)+$I$4*SUM($I$6:$I$7)+$J$4*SUM($J$6:$J$7))*100 -> 10 | H12: 0 | I12: 0 | J12: 0 | K12: =SUM(F12:J12) -> 30 | M12: (지필내서술비율) | O12: =O7*O4/($O$4*SUM($O$6:$O$7)+$P$4*SUM($P$6:$P$7)+$Q$4*SUM($Q$6:$Q$7)+$R$4*SUM($R$6:$R$7)+$S$4*SUM($S$6:$S$7))*100 -> 20 | P12: =P7*P4/($O$4*SUM($O$6:$O$7)+$P$4*SUM($P$6:$P$7)+$Q$4*SUM($Q$6:$Q$7)+$R$4*SUM($R$6:$R$7)+$S$4*SUM($S$6:$S$7))*100 -> 0 | Q12: 0 | R12: 0 | S12: 0 | T12: =SUM(O12:S12) -> 20
D14: 3안 | F14: 시험1 | G14: 시험2 | H14: 시험3 | I14: 시험4 | J14: 시험5 | K14: 점검 | M14: 4안 | O14: 시험1 | P14: 시험2 | Q14: 시험3 | R14: 시험4 | S14: 시험5 | T14: 점검
F15: 중간고사 | G15: 기말고사 | H15: 수행평가 | O15: 중간고사 | P15: 기말고사 | Q15: 수행평가
E16: 비율 | F16: 32 | G16: 48 | H16: 20 | K16: =SUM(F16:J16) -> 100 | N16: 비율 | O16: 20 | P16: 30 | Q16: 50 | T16: =SUM(O16:S16) -> 100
E17: 합계 | F17: =IF(SUM(F18:F19)=0,"",SUM(F18:F19)) -> 100 | G17: =IF(SUM(G18:G19)=0,"",SUM(G18:G19)) -> 100 | N17: 합계 | O17: =IF(SUM(O18:O19)=0,"",SUM(O18:O19)) -> 100 | P17: =IF(SUM(P18:P19)=0,"",SUM(P18:P19)) -> 100
E18: 지필 | F18: 45 | G18: 100 | N18: 지필 | O18: 100 | P18: 50
E19: 서술 | F19: 55 | N19: 서술 | P19: 50
E20: 수행 | H20: 100 | N20: 수행 | Q20: 100
E21: =IF(E18="","",E18&" % ") -> 지필 % | F21: =IF(F18="","",F18*F$4/100) -> 18 | G21: =IF(G18="","",G18*G$4/100) -> 40 | K21: =SUM(F21:J23) -> 100 | N21: =IF(N18="","",N18&" % ") -> 지필 % | O21: =IF(O18="","",O18*O$4/100) -> 40 | P21: =IF(P18="","",P18*P$4/100) -> 20 | T21: =SUM(O21:S23) -> 100
E22: =IF(E19="","",E19&" % ") -> 서술 % | F22: =IF(F19="","",F19*F$4/100) -> 22 | G22: =IF(G19="","",G19*G$4/100) ->  | N22: =IF(N19="","",N19&" % ") -> 서술 % | O22: =IF(O19="","",O19*O$4/100) ->  | P22: =IF(P19="","",P19*P$4/100) -> 20
E23: 수행% | F23: =IF(F20="","",F20*F$4/100) ->  | G23: =IF(G20="","",G20*G$4/100) ->  | H23: 20 | N23: 수행% | O23: =IF(O20="","",O20*O$4/100) ->  | P23: =IF(P20="","",P20*P$4/100) ->  | Q23: 20
D24: (지필내서술비율) | F24: =F19*F16/($F$16*SUM($F$18:$F$19)+$G$16*SUM($G$18:$G$19)+$H$16*SUM($H$18:$H$19)+$I$16*SUM($I$18:$I$19)+$J$16*SUM($J$18:$J$19))*100 -> 22 | G24: =G19*G16/($F$16*SUM($F$18:$F$19)+$G$16*SUM($G$18:$G$19)+$H$16*SUM($H$18:$H$19)+$I$16*SUM($I$18:$I$19)+$J$16*SUM($J$18:$J$19))*100 -> 0 | H24: 0 | I24: 0 | J24: 0 | K24: =SUM(F24:J24) -> 22 | M24: (지필내서술비율) | O24: =O19*O16/($O$16*SUM($O$18:$O$19)+$P$16*SUM($P$18:$P$19)+$Q$16*SUM($Q$18:$Q$19)+$R$16*SUM($R$18:$R$19)+$S$16*SUM($S$18:$S$19))*100 -> 0 | P24: =P19*P16/($O$16*SUM($O$18:$O$19)+$P$16*SUM($P$18:$P$19)+$Q$16*SUM($Q$18:$Q$19)+$R$16*SUM($R$18:$R$19)+$S$16*SUM($S$18:$S$19))*100 -> 30 | Q24: 0 | R24: 0 | S24: 0 | T24: =SUM(O24:S24) -> 30

Sheet 비율5~8안
E1: * 서술형 평가는 지필평가 내에서 20% 이상
D2: 5안 | F2: 시험1 | G2: 시험2 | H2: 시험3 | I2: 시험4 | J2: 시험5 | K2: 점검 | M2: 6안 | O2: 시험1 | P2: 시험2 | Q2: 시험3 | R2: 시험4 | S2: 시험5 | T2: 점검
F3: 중간고사 | G3: 기말고사 | H3: 수행평가 | O3: 중간고사 | P3: 기말고사 | Q3: 수행평가
E4: 비율 | F4: 35 | G4: 45 | H4: 20 | K4: =SUM(F4:J4) -> 100 | N4: 비율 | O4: 35 | P4: 45 | Q4: 20 | T4: =SUM(O4:S4) -> 100
E5: 합계 | F5: =IF(SUM(F6:F7)=0,"",SUM(F6:F7)) -> 100 | G5: =IF(SUM(G6:G7)=0,"",SUM(G6:G7)) -> 100 | N5: 합계 | O5: =IF(SUM(O6:O7)=0,"",SUM(O6:O7)) -> 100 | P5: =IF(SUM(P6:P7)=0,"",SUM(P6:P7)) -> 100
E6: 지필 | F6: 50 | G6: 100 | N6: 지필 | O6: 54 | P6: 100
E7: 서술 | F7: 50 | N7: 서술 | O7: 46
E8: 수행 | H8: 100 | N8: 수행 | Q8: 100
E9: =IF(E6="","",E6&" % ") -> 지필 % | F9: =IF(F6="","",F6*F$4/100) -> 17.5 | G9: =IF(G6="","",G6*G$4/100) -> 45 | K9: =SUM(F9:J11) -> 100 | N9: =IF(N6="","",N6&" % ") -> 지필 % | O9: =IF(O6="","",O6*O$4/100) -> 18.9 | P9: =IF(P6="","",P6*P$4/100) -> 45 | T9: =SUM(O9:S11) -> 100
E10: =IF(E7="","",E7&" % ") -> 서술 % | F10: =IF(F7="","",F7*F$4/100) -> 17.5 | N10: =IF(N7="","",N7&" % ") -> 서술 % | O10: =IF(O7="","",O7*O$4/100) -> 16.1
E11: 수행% | F11: =IF(F8="","",F8*F$4/100) ->  | H11: 20 | N11: 수행% | O11: =IF(O8="","",O8*O$4/100) ->  | Q11: 20
D12: (지필내서술비율) | F12: =F7*F4/($F$4*SUM($F$6:$F$7)+$G$4*SUM($G$6:$G$7)+$H$4*SUM($H$6:$H$7)+$I$4*SUM($I$6:$I$7)+$J$4*SUM($J$6:$J$7))*100 -> 21.875 | G12: =G7*G4/($F$4*SUM($F$6:$F$7)+$G$4*SUM($G$6:$G$7)+$H$4*SUM($H$6:$H$7)+$I$4*SUM($I$6:$I$7)+$J$4*SUM($J$6:$J$7))*100 -> 0 | H12: 0 | I12: 0 | J12: 0 | K12: =SUM(F12:J12) -> 21.875 | M12: (지필내서술비율) | O12: =O7*O4/($O$4*SUM($O$6:$O$7)+$P$4*SUM($P$6:$P$7)+$Q$4*SUM($Q$6:$Q$7)+$R$4*SUM($R$6:$R$7)+$S$4*SUM($S$6:$S$7))*100 -> 20.125 | P12: =P7*P4/($O$4*SUM($O$6:$O$7)+$P$4*SUM($P$6:$P$7)+$Q$4*SUM($Q$6:$Q$7)+$R$4*SUM($R$6:$R$7)+$S$4*SUM($S$6:$S$7))*100 -> 0 | Q12: 0 | R12: 0 | S12: 0 | T12: =SUM(O12:S12) -> 20.125
D14: 7안 | F14: 시험1 | G14: 시험2 | H14: 시험3 | I14: 시험4 | J14: 시험5 | K14: 점검 | M14: 8안 | O14: 시험1 | P14: 시험2 | Q14: 시험3 | R14: 시험4 | S14: 시험5 | T14: 점검
F15: 중간고사 | G15: 기말고사 | H15: 수행평가 | O15: 중간고사 | P15: 기말고사 | Q15: 수행평가
E16: 비율 | F16: 30 | G16: 50 | H16: 20 | K16: =SUM(F16:J16) -> 100 | N16: 비율 | O16: 20 | P16: 30 | Q16: 50 | T16: =SUM(O16:S16) -> 100
E17: 합계 | F17: =IF(SUM(F18:F19)=0,"",SUM(F18:F19)) -> 100 | G17: =IF(SUM(G18:G19)=0,"",SUM(G18:G19)) -> 100 | N17: 합계 | O17: =IF(SUM(O18:O19)=0,"",SUM(O18:O19)) -> 100 | P17: =IF(SUM(P18:P19)=0,"",SUM(P18:P19)) -> 100
E18: 지필 | F18: 45 | G18: 100 | N18: 지필 | O18: 100 | P18: 65
E19: 서술 | F19: 55 | N19: 서술 | P19: 35
E20: 수행 | H20: 100 | N20: 수행 | Q20: 100
E21: =IF(E18="","",E18&" % ") -> 지필 % | F21: =IF(F18="","",F18*F$4/100) -> 15.75 | G21: =IF(G18="","",G18*G$4/100) -> 45 | K21: =SUM(F21:J23) -> 100 | N21: =IF(N18="","",N18&" % ") -> 지필 % | O21: =IF(O18="","",O18*O$4/100) -> 35 | P21: =IF(P18="","",P18*P$4/100) -> 29.25 | T21: =SUM(O21:S23) -> 100
E22: =IF(E19="","",E19&" % ") -> 서술 % | F22: =IF(F19="","",F19*F$4/100) -> 19.25 | N22: =IF(N19="","",N19&" % ") -> 서술 % | O22: =IF(O19="","",O19*O$4/100) ->  | P22: 15.75
E23: 수행% | F23: =IF(F20="","",F20*F$4/100) ->  | H23: 20 | N23: 수행% | O23: =IF(O20="","",O20*O$4/100) ->  | Q23: 20
D24: (지필내서술비율) | F24: =F19*F16/($F$16*SUM($F$18:$F$19)+$G$16*SUM($G$18:$G$19)+$H$16*SUM($H$18:$H$19)+$I$16*SUM($I$18:$I$19)+$J$16*SUM($J$18:$J$19))*100 -> 20.625 | G24: =G19*G16/($F$16*SUM($F$18:$F$19)+$G$16*SUM($G$18:$G$19)+$H$16*SUM($H$18:$H$19)+$I$16*SUM($I$18:$I$19)+$J$16*SUM($J$18:$J$19))*100 -> 0 | H24: 0 | I24: 0 | J24: 0 | K24: =SUM(F24:J24) -> 20.625 | M24: (지필내서술비율) | O24: =O19*O16/($O$16*SUM($O$18:$O$19)+$P$16*SUM($P$18:$P$19)+$Q$16*SUM($Q$18:$Q$19)+$R$16*SUM($R$18:$R$19)+$S$16*SUM($S$18:$S$19))*100 -> 0 | P24: =P19*P16/($O$16*SUM($O$18:$O$19)+$P$16*SUM($P$18:$P$19)+$Q$16*SUM($Q$18:$Q$19)+$R$16*SUM($R$18:$R$19)+$S$16*SUM($S$18:$S$19))*100 -> 21 | Q24: =Q19*Q16/($O$16*SUM($O$18:$O$19)+$P$16*SUM($P$18:$P$19)+$Q$16*SUM($Q$18:$Q$19)+$R$16*SUM($R$18:$R$19)+$S$16*SUM($S$18:$S$19))*100 -> 0 | R24: 0 | S24: 0 | T24: =SUM(O24:S24) -> 21
